bitfinex-derivatives/quotes_ETHF0:USTF0_20260125
["timestamp","ask_amount","ask_price","bid_price","bid_amount"]
[1769379982950,2.73625657,2802.4,2801.2,3.569]
[1769379983646,2.73625657,2802.4,2801.2,3.57294557]
[1769379984144,2.1160175,2802.8,2800.2,12.43718134]
[1769379984145,2.71172343,2801.9,2800.3,3.60753105]
[1769379984342,2.89040343,2801.5,2800.1,2.745]
[1769379984749,2.71172343,2801.4,2799.8,7.17753105]
[1769379984947,2.71172343,2801.0,2799.4,3.60753105]
[1769379985150,2.71478956,2801.0,2799.4,3.61028123]
[1769379986858,0.00306613,2801.0,2799.4,3.61028123]
[1769379991761,0.00306613,2801.0,2799.4,3.78909123]
[1769379991962,2.7962631,2801.5,2799.4,3.78909123]
[1769379992161,0.17868,2801.5,2799.6,3.60753105]
[1769379992563,0.17868,2801.5,2799.8,3.60753105]
[1769379992862,0.18203538,2801.5,2799.8,3.60753105]
[1769379993961,0.00335538,2801.5,2799.8,3.60753105]
[1769379994162,0.00335538,2801.5,2799.8,3.78631105]
[1769379995661,0.00335538,2801.5,2799.8,7.35831105]
[1769379996160,0.00335538,2801.5,2799.9,3.56399929]
[1769379996361,0.17869,2801.4,2799.9,3.56399929]
[1769379998260,2.72730664,2801.4,2799.8,3.572]
[1769379998975,2.72730664,2801.3,2799.8,3.572]
[1769379999860,2.72730664,2801.3,2799.8,7.13599929]
[1769380000059,0.17869,2801.3,2799.9,3.56399929]
[1769380002158,2.66418814,2801.3,2799.8,4.90867285]
[1769380002358,2.66419814,2801.2,2799.8,4.90867285]
[1769380003565,2.48549814,2801.1,2799.4,0.00275018]
[1769380003768,2.66419814,2801.1,2799.4,3.56674947]
[1769380004264,2.56159105,2800.9,2799.4,0.00275018]
[1769380004761,0.17872,2800.9,2799.4,3.56674947]
[1769380007368,0.17872,2800.9,2799.5,1.33667285]
[1769380008357,0.17872,2800.8,2799.5,1.33667285]
[1769380008564,0.17872,2800.8,2799.5,4.90067214]
[1769380008770,6.36,2801.2,2799.6,3.56399929]
[1769380009467,6.5387,2801.2,2799.6,3.56399929]
[1769380009771,0.17872,2800.9,2799.6,3.56399929]
[1769380010971,0.17872,2800.8,2799.6,3.56399929]
[1769380011566,2.31979777,2801.1,2799.4,0.00275018]
[1769380011764,2.34803609,2800.4,2799.4,0.00275018]
[1769380011967,0.17875,2800.3,2799.1,1.33667285]
[1769380012370,4.46405359,2800.8,2799.1,4.90067214]
[1769380012567,3.46988854,2800.7,2799.1,4.90067214]
[1769380012772,0.17876,2800.3,2799.1,1.33667285]
[1769380012976,0.17876,2800.3,2799.1,1.3394598]
[1769380015575,0.17876,2800.3,2799.1,4.90345909]
[1769380015765,2.34610725,2800.9,2799.2,3.56399929]
[1769380015966,3.46900985,2800.8,2799.2,3.56399929]
[1769380016165,2.34610725,2800.9,2799.2,3.56399929]
[1769380016372,5.81638327,2800.8,2799.2,3.56399929]
[1769380016566,2.34894737,2800.6,2799.1,1.3394598]
[1769380016870,0.17875,2800.3,2799.1,1.3394598]
[1769380019276,6.36,2800.8,2799.2,3.56399929]
[1769380019472,0.17875,2800.3,2799.2,3.56399929]
[1769380021576,6.36,2800.8,2799.2,3.56399929]
[1769380021878,4.47060572,2801.4,2799.7,3.56399929]
[1769380022078,0.17872,2800.9,2799.7,3.56399929]
[1769380023377,0.18203538,2801.5,2800.2,3.56389505]
[1769380023582,0.17868,2801.4,2800.2,3.56389505]
[1769380025274,8.4760175,2802.1,2800.2,3.56389505]
[1769380025473,3.47002392,2802.0,2800.2,3.56389505]
[1769380025677,3.47002392,2801.9,2800.2,3.56389505]
[1769380025982,3.47002392,2801.8,2800.2,3.56389505]
[1769380026287,3.4708967,2801.7,2800.2,3.56389505]
[1769380026475,0.17866,2801.7,2800.2,3.56389505]
[1769380027782,0.17868,2801.6,2800.3,3.56389505]
[1769380028687,0.17868,2801.4,2800.3,3.56389505]
[1769380029679,0.00300115,2801.8,2800.8,3.56389505]
[1769380032480,0.17867,2801.6,2800.4,3.56389505]
[1769380039492,2.44235729,2801.8,2800.1,5.16325175]
[1769380039790,2.44235729,2801.8,2800.2,3.82679203]
[1769380040493,0.17868,2801.4,2800.2,3.82679203]
[1769380040694,0.17871,2801.0,2799.7,3.82679203]
[1769380040893,2.43862331,2801.5,2799.7,3.82679203]
[1769380041193,0.17871,2801.0,2799.7,3.82679203]
[1769380041386,2.44162446,2801.8,2800.1,5.16325175]
[1769380041691,0.17869,2801.3,2800.1,5.16325175]
[1769380041887,0.17869,2801.3,2800.2,3.82679203]
[1769380043185,2.44162446,2801.8,2800.2,3.34588203]
[1769380043186,0.1787,2801.2,2800.2,3.34588203]
[1769380046283,0.18166115,2801.8,2800.2,3.34588203]
[1769380046692,0.17868,2801.5,2800.2,3.34588203]
[1769380048389,2.97305793,2801.5,2799.8,6.40136997]
[1769380048594,2.97305793,2801.5,2799.1,3.82957898]
[1769380048595,0.17874,2800.5,2799.1,3.82957898]
[1769380053994,0.17874,2800.5,2799.1,7.65357898]
[1769380054299,0.17874,2800.5,2799.2,3.68996456]
[1769380057399,0.17875,2800.4,2799.2,3.68996456]
[1769380060119,8.48083833,2801.3,2799.3,3.68996456]
[1769380060305,0.17873,2800.7,2799.5,3.68996456]
[1769380060506,3.5502776,2801.0,2799.1,0.00278695]
[1769380060809,0.17875,2800.4,2799.1,0.00278695]
[1769380061707,3.5502776,2800.9,2799.1,0.00278695]
[1769380061909,0.17876,2800.3,2799.1,0.00278695]
[1769380062611,0.17876,2800.3,2799.1,3.69275151]
[1769380069822,0.17872,2800.9,2799.1,3.69275151]
[1769380070023,0.17872,2800.8,2799.1,3.69275151]
[1769380070521,0.17872,2800.8,2799.1,10.09412148]
[1769380070723,0.17872,2800.8,2799.2,3.68996456]
[1769380074226,0.17874,2800.6,2799.2,3.68996456]
[1769380076424,0.17874,2800.6,2799.2,10.09133453]
[1769380076622,0.17874,2800.6,2799.3,3.68996456]
[1769380077620,5.67111593,2801.1,2799.3,3.68996456]
[1769380077621,3.5502776,2801.0,2799.3,3.68996456]
[1769380077820,3.5502776,2800.8,2799.3,3.68996456]
[1769380078024,3.47672469,2800.7,2799.3,3.68996456]
[1769380078222,3.47957415,2800.6,2799.3,3.68996456]
[1769380078429,3.5502776,2800.8,2799.3,3.68996456]
[1769380078629,0.17874,2800.5,2799.3,3.68996456]
[1769380079140,3.5502776,2800.8,2799.3,3.68996456]
[1769380079141,0.17875,2800.4,2799.3,3.68996456]
[1769380079622,0.17878,2799.9,2799.1,0.00278695]
[1769380080626,2.8030576,2800.4,2799.1,0.00278695]
[1769380080821,3.47889873,2800.3,2799.1,0.00278695]
[1769380081022,3.47889873,2800.2,2799.1,0.00278695]
[1769380081223,2.12083833,2800.5,2799.1,0.00278695]
[1769380081426,5.59963746,2800.5,2799.1,0.00278695]
[1769380081629,0.17878,2799.9,2799.1,0.00278695]
[1769380085227,0.17879,2799.8,2799.1,0.00278695]
[1769380085427,3.09605675,2799.7,2798.1,4.40461194]
[1769380085626,3.09605675,2799.7,2798.2,3.51266064]
[1769380085926,0.17882,2799.2,2797.8,5.12450816]
[1769380086226,0.17884,2799.0,2797.8,5.12450816]
[1769380086431,0.17884,2799.0,2797.8,5.12713169]
[1769380086633,0.17884,2799.0,2797.8,1.61447105]
[1769380087622,0.17884,2799.0,2797.9,3.51266064]
[1769380089420,3.16016819,2799.0,2797.8,1.61447105]
[1769380089631,0.17886,2798.7,2797.8,1.61447105]
[1769380090129,0.17886,2798.7,2797.8,0.00262353]
[1769380090323,3.16563322,2798.7,2797.8,0.00262353]
[1769380090530,0.17889,2798.2,2796.7,17.57433032]
[1769380090725,0.1789,2798.1,2796.7,3.51266064]
[1769380091125,3.16563322,2798.8,2796.7,3.51266064]
[1769380091324,0.17887,2798.5,2796.7,3.51266064]
[1769380091527,0.17887,2798.5,2796.7,3.51622811]
[1769380092630,3.24820308,2799.3,2796.9,3.51266064]
[1769380092824,0.17883,2799.1,2797.0,3.51266064]
[1769380093130,0.17883,2799.1,2797.1,3.51266064]
[1769380094627,0.17884,2799.0,2797.1,3.51266064]
[1769380094832,3.24820308,2799.3,2797.1,3.51266064]
[1769380095238,0.17886,2798.7,2797.1,3.51266064]
[1769380097639,3.24820308,2799.3,2797.1,3.51266064]
[1769380097840,0.17883,2799.1,2797.1,3.51266064]
[1769380098430,0.18221084,2799.8,2797.6,3.57892149]
[1769380098636,3.23580421,2799.8,2797.6,3.57892149]
[1769380099237,0.17882,2799.3,2797.6,3.57892149]
[1769380100938,0.17882,2799.3,2797.8,3.57892149]
[1769380101345,0.00342084,2799.8,2797.9,3.57892149]
[1769380101641,0.18221084,2799.8,2797.9,3.57892149]
[1769380102637,0.00342084,2799.8,2797.9,3.57892149]
[1769380102833,0.00342084,2799.8,2798.1,3.57892149]
[1769380107047,0.00342084,2799.8,2798.3,3.57892149]
[1769380107638,0.00342084,2799.8,2798.5,3.57892149]
[1769380107844,0.00342084,2799.8,2798.5,3.75779149]
[1769380108046,3.35821975,2800.6,2798.5,3.75779149]
[1769380108745,0.17873,2800.6,2798.5,10.15916146]
[1769380108945,0.17873,2800.6,2798.6,3.57892149]
[1769380109145,0.18137904,2800.6,2798.6,3.57892149]
[1769380111449,0.18137904,2800.6,2798.6,3.75778149]
[1769380111751,0.00264904,2800.6,2799.1,3.57892149]
[1769380111953,0.00264904,2800.6,2799.1,3.58205259]
[1769380116048,0.17871,2801.0,2799.1,3.76088259]
[1769380117149,0.18229855,2801.0,2799.1,3.76088259]
[1769380121351,0.18229855,2801.0,2799.3,3.84238436]
[1769380122259,0.18229855,2801.0,2799.4,3.84238436]
[1769380126053,0.00358855,2801.0,2799.4,5.35825214]
[1769380126259,0.17869,2801.3,2799.5,3.84238436]
[1769380126461,0.17869,2801.3,2799.6,3.84238436]
[1769380127152,0.18307327,2801.3,2799.6,4.02118436]
[1769380127755,0.17864,2802.2,2800.1,4.02114436]
[1769380127961,0.17864,2802.2,2800.3,3.84238436]
[1769380128151,0.17864,2802.1,2800.2,0.17876]
[1769380128356,1.33705778,2802.0,2800.3,3.84238436]
[1769380128551,3.1786811,2802.1,2800.3,3.84238436]
[1769380128752,0.17866,2801.8,2800.3,3.84238436]
[1769380129656,0.89114786,2801.4,2800.3,3.84238436]
[1769380129858,0.17866,2801.8,2800.3,3.84238436]
[1769380129859,0.89112696,2801.5,2800.3,3.84238436]
[1769380130060,0.89112775,2801.5,2800.3,3.84238436]
[1769380130264,0.00306961,2802.1,2800.8,3.84238436]
[1769380130459,0.00306961,2802.1,2800.3,3.84238436]
[1769380130460,0.89112775,2801.6,2800.3,3.84238436]
[1769380130658,0.89112775,2801.6,2800.4,0.89112775]
[1769380130961,0.89112775,2801.8,2800.5,3.84238436]
[1769380131563,0.89112775,2802.0,2800.6,4.73351211]
[1769380132261,0.18170961,2802.1,2800.6,4.73351211]
[1769380132467,0.89112775,2801.2,2799.9,3.84238436]
[1769380132970,0.89112775,2801.0,2799.9,3.84238436]
[1769380133159,1.06979775,2801.6,2799.9,3.84238436]
[1769380133160,0.89112775,2800.8,2799.9,3.84238436]
[1769380133564,0.1787,2801.2,2799.9,3.84238436]
[1769380135564,0.17867,2801.7,2799.9,3.84238436]
[1769380140778,0.17867,2801.7,2799.9,10.24375433]
[1769380141072,0.17867,2801.7,2800.0,3.84238436]
[1769380141272,0.17867,2801.7,2800.1,3.84238436]
[1769380142173,0.17867,2801.7,2800.3,3.84238436]
[1769380142567,0.00306961,2802.1,2800.4,3.84238436]
[1769380142768,0.00306961,2802.1,2800.5,3.84238436]
[1769380143776,0.17865,2801.9,2800.5,3.84238436]
[1769380145370,0.00306961,2802.1,2800.5,3.84238436]
[1769380145371,0.17866,2801.8,2800.5,3.84238436]
[1769380145579,0.00306961,2802.1,2800.5,10.24375433]
[1769380145780,0.00306961,2802.1,2800.6,3.62951657]
[1769380151176,0.17865,2801.9,2800.6,3.62951657]
[1769380153082,0.17868,2801.5,2800.4,3.08]
[1769380153283,0.17873,2800.7,2799.1,3.63264767]
[1769380156183,0.17873,2800.7,2799.3,3.75261528]
[1769380156384,0.17873,2800.7,2799.3,7.57661528]
[1769380156779,0.17873,2800.7,2799.4,3.75261528]
[1769380160294,0.17873,2800.6,2799.4,3.75261528]
[1769380161194,0.17876,2800.3,2799.4,3.75261528]
[1769380161685,3.00512641,2800.8,2799.4,3.75261528]
[1769380161889,0.17878,2800.0,2799.1,0.0031311]
[1769380162188,0.17878,2799.9,2799.1,0.0031311]
[1769380164091,3.01734385,2800.0,2798.3,3.75261528]
[1769380164387,0.17881,2799.5,2798.3,3.75261528]
[1769380164788,0.17882,2799.3,2798.3,3.75261528]
[1769380165290,0.17882,2799.3,2798.3,3.75584662]
[1769380165490,0.17882,2799.3,2798.3,0.00323134]
[1769380166582,0.17883,2799.2,2798.3,0.00323134]
[1769380167189,0.17883,2799.1,2798.3,0.00323134]
[1769380170695,0.17884,2799.0,2798.3,0.00323134]
[1769380171695,0.17884,2798.9,2797.5,3.75261528]
[1769380171993,0.17884,2798.9,2797.3,2.497]
[1769380171994,0.17884,2798.9,2797.6,7.57661528]
[1769380172799,0.17884,2798.9,2797.6,7.58031427]
[1769380172992,0.17885,2798.8,2797.6,7.58031427]
[1769380174092,0.17885,2798.8,2797.7,3.824]
[1769380174294,3.02969009,2799.1,2797.6,0.00369899]
[1769380174502,0.17887,2798.4,2797.6,0.00369899]
[1769380174691,0.17889,2798.2,2797.6,8.99e-06]
[1769380175902,0.1789,2798.0,2797.6,8.99e-06]
[1769380176200,0.1789,2798.0,2796.8,3.14111922]
[1769380176800,0.1789,2798.0,2796.2,2.748]
[1769380177096,0.17892,2797.7,2796.2,0.00437451]
[1769380177399,0.17896,2797.1,2796.2,0.00437451]
[1769380177800,0.17897,2796.9,2794.8,1.399595]
[1769380178095,1.33734448,2797.8,2794.8,1.399595]
[1769380178096,0.17895,2797.3,2794.8,1.33734448]
[1769380178300,0.17895,2797.3,2795.4,3.54976922]
[1769380178496,3.38233369,2797.8,2795.4,3.54976922]
[1769380178695,0.17891,2797.9,2795.9,3.54976922]
[1769380178892,0.17891,2797.9,2795.9,3.5527366]
[1769380182396,0.17891,2797.9,2796.3,1.33734448]
[1769380182702,0.17891,2797.9,2796.4,3.54976922]
[1769380183002,0.00407932,2798.0,2796.4,3.54976922]
[1769380186593,0.00407932,2798.0,2796.4,3.72876922]
[1769380188802,0.00407932,2798.0,2796.6,3.54976922]
[1769380189100,0.00407932,2798.0,2796.8,3.54976922]
[1769380189309,0.17887,2798.6,2796.8,3.54976922]
[1769380189606,0.17887,2798.6,2797.0,3.54976922]
[1769380190309,0.18346542,2798.6,2797.0,3.54976922]
[1769380190606,0.00459542,2798.6,2797.2,3.54976922]
[1769380191907,0.00459542,2798.6,2797.4,3.06168922]
[1769380198210,0.00459542,2798.6,2796.7,3.54976922]
[1769380198411,0.00459542,2798.6,2796.9,3.54976922]
[1769380200706,0.00459542,2798.6,2797.1,3.54976922]
[1769380202214,0.00459542,2798.6,2797.3,3.54976922]
[1769380202416,0.00459542,2798.6,2797.5,3.54976922]
[1769380203613,0.17882,2799.3,2797.5,3.54976922]
[1769380203814,0.17882,2799.3,2797.7,3.75962071]
[1769380204713,0.00427125,2799.3,2797.7,3.75962071]
[1769380205114,0.00427125,2799.3,2797.9,3.75962071]
[1769380205306,0.00427125,2799.3,2797.9,3.7624957]
[1769380206618,3.68840046,2800.2,2798.1,3.75962071]
[1769380206814,3.68840046,2800.2,2798.3,3.75962071]
[1769380207020,3.68840046,2800.2,2798.4,3.75962071]
[1769380207518,0.17875,2800.3,2798.4,3.75962071]
[1769380207709,3.87020611,2800.3,2798.4,3.75962071]
[1769380207918,3.69145611,2800.3,2798.4,3.75962071]
[1769380208620,0.17876,2800.2,2798.4,3.75962071]
[1769380209219,3.69145611,2800.3,2798.4,3.75962071]
[1769380209220,0.17877,2800.1,2798.4,3.75962071]
[1769380211919,3.69145611,2800.3,2798.4,3.75962071]
[1769380212711,3.68840046,2800.1,2798.0,3.75962071]
[1769380213713,0.17881,2799.5,2798.0,3.75962071]
[1769380213920,0.17882,2799.2,2798.0,3.75962071]
[1769380217921,5.8552228,2800.2,2798.0,3.75962071]
[1769380218120,0.17879,2799.7,2798.1,3.70284263]
[1769380219824,3.73495517,2800.2,2798.3,3.70284263]
[1769380219825,0.17876,2800.2,2798.3,3.70284263]
[1769380220927,0.17876,2800.2,2798.5,3.70284263]
[1769380221119,0.17876,2800.2,2798.7,3.70284263]
[1769380221316,0.17876,2800.2,2798.8,3.70284263]
[1769380224721,0.00305565,2800.3,2798.8,3.70284263]
[1769380226531,0.17876,2800.2,2798.8,3.70284263]
[1769380234037,0.17877,2800.1,2798.8,3.70284263]
[1769380235435,0.17881,2799.4,2798.0,3.47923929]
[1769380235733,0.17882,2799.3,2798.0,3.47923929]
[1769380236238,0.17882,2799.2,2798.0,3.47923929]
[1769380237633,0.17882,2799.2,2797.6,3.47923929]
[1769380239335,3.70120296,2799.1,2797.2,3.47923929]
[1769380239734,3.70120296,2799.1,2797.3,3.824]
[1769380240539,3.52237296,2799.1,2797.2,7.30323929]
[1769380240734,3.70121296,2799.0,2797.2,7.30323929]
[1769380241032,3.70121296,2799.0,2797.5,3.47923929]
[1769380241033,0.17884,2799.0,2797.5,3.47923929]
[1769380241435,0.17884,2799.0,2797.8,3.47923929]
[1769380241742,0.17884,2799.0,2797.9,3.48211428]
[1769380243144,0.17884,2798.9,2796.9,3.4356889]
[1769380244243,0.17884,2798.9,2796.9,3.43889022]
[1769380245243,0.17884,2798.9,2797.0,3.47923929]
[1769380245639,0.17884,2798.9,2796.9,2.09920132]
[1769380245640,0.17884,2798.9,2797.3,3.47923929]
[1769380252042,0.17881,2799.5,2797.8,3.47923929]
[1769380252546,3.52237296,2799.5,2797.8,3.47923929]
[1769380253547,0.17882,2799.2,2797.8,3.47923929]
[1769380255449,3.52237296,2799.5,2797.8,3.47923929]
[1769380255844,0.17882,2799.2,2797.8,3.47923929]
[1769380257746,5.64264059,2800.0,2797.8,3.47923929]
[1769380257954,3.510931,2799.9,2797.8,3.47923929]
[1769380258246,3.510931,2799.8,2797.8,3.47923929]
[1769380258447,3.52237296,2800.0,2797.8,3.47923929]
[1769380258654,3.51175612,2799.9,2797.8,3.47923929]
[1769380258844,3.51175612,2799.8,2797.8,3.47923929]
[1769380259048,3.52237296,2800.0,2797.8,3.47923929]
[1769380259253,0.17881,2799.4,2797.8,3.47923929]
[1769380260549,0.17881,2799.4,2797.8,7.30323929]
[1769380260854,0.17881,2799.4,2797.9,3.47923929]
[1769380261050,0.17878,2799.9,2798.3,3.47923929]
[1769380264754,0.00305565,2800.3,2798.3,3.47923929]
[1769380264755,0.00305565,2800.3,2798.8,3.82065565]
[1769380264963,0.17874,2800.5,2799.3,3.82065565]
[1769380265557,2.12143167,2801.0,2799.3,3.82065565]
[1769380265752,3.51784564,2800.9,2799.3,3.82065565]
[1769380265958,3.51784564,2800.8,2799.3,3.82526702]
[1769380266162,0.00439243,2800.9,2799.3,3.82526702]
[1769380266951,0.17873,2800.8,2799.3,3.82526702]
[1769380269458,0.00439243,2800.9,2799.8,3.82065565]
[1769380270367,0.17868,2801.4,2800.3,3.82065565]
[1769380271258,0.18327467,2801.4,2800.3,3.82065565]
[1769380272769,0.00459467,2801.4,2800.3,3.82065565]
[1769380274562,0.1787,2801.2,2800.3,3.82065565]
[1769380277375,0.00459467,2801.4,2800.3,5.15973749]
[1769380277668,0.00459467,2801.4,2800.4,3.58761836]
[1769380281564,0.17866,2801.8,2800.4,3.58761836]
[1769380282071,0.46518024,2802.4,2800.4,3.58761836]
[1769380282270,0.17864,2802.1,2800.4,3.58761836]
[1769380282771,0.18142419,2802.1,2800.4,3.58761836]
[1769380285764,0.18142419,2802.1,2801.2,0.89067612]
[1769380288272,0.17864,2802.0,2801.2,0.53299612]
[1769380289667,0.17864,2802.0,2801.4,0.89067612]
[1769380289873,0.17864,2802.0,2801.4,0.89440275]
[1769380291571,0.17864,2802.0,2801.4,0.00372663]
[1769380291874,0.17864,2802.0,2801.4,0.89440275]
[1769380292775,0.00278419,2802.1,2801.4,0.89440275]
[1769380292776,0.17865,2801.9,2801.4,0.00372663]
[1769380293776,0.17868,2801.6,2800.3,3.52266359]
[1769380293976,0.17868,2801.6,2800.7,0.89067612]
[1769380294679,0.17868,2801.6,2800.9,0.89067612]
[1769380294978,0.00278419,2802.1,2801.3,0.89067612]
[1769380295178,0.00278419,2802.1,2800.9,0.00462024]
[1769380295179,3.50432334,2802.0,2801.1,0.89067612]
[1769380295385,0.00278419,2802.1,2801.1,0.89067612]
[1769380295587,3.50578316,2802.0,2801.1,0.89067612]
[1769380295784,0.18142419,2802.1,2801.1,0.89067612]
[1769380295984,3.50581224,2802.0,2800.9,0.89529636]
[1769380296180,3.50548985,2801.9,2800.9,0.00462024]
[1769380296381,3.50548985,2801.8,2800.9,0.89529636]
[1769380296580,3.5919018,2802.0,2800.9,0.89529636]
[1769380296780,3.50720185,2801.9,2801.1,0.89067612]
[1769380297083,0.00278419,2802.1,2801.1,0.89067612]
[1769380297280,3.50898959,2802.0,2801.1,0.89067612]
[1769380297482,3.68763959,2801.9,2801.1,0.89067612]
[1769380297686,3.50898959,2801.8,2801.1,0.89067612]
[1769380297877,0.17865,2801.9,2801.1,0.89067612]
[1769380298080,3.50895289,2801.8,2801.1,0.89067612]
[1769380298277,0.17865,2801.9,2800.9,0.89529636]
[1769380298480,3.51020043,2801.8,2800.9,0.89529636]
[1769380298681,0.17865,2801.9,2800.9,0.89529636]
[1769380298882,3.50993984,2801.8,2800.9,0.89529636]
[1769380299084,0.17865,2801.9,2800.9,0.89529636]
[1769380299283,3.5114062,2801.8,2800.9,0.89529636]
[1769380299483,0.17865,2801.9,2800.9,0.89529636]
[1769380299685,3.51152284,2801.8,2800.9,0.89529636]
[1769380299886,0.17865,2801.9,2800.9,0.89529636]
[1769380300186,3.51152791,2801.8,2800.9,0.89529636]
[1769380300387,0.17865,2801.9,2800.9,0.89529636]
[1769380300593,3.51231269,2801.8,2800.9,0.89529636]
[1769380300886,0.00278419,2802.1,2801.5,0.89067612]
[1769380301090,0.00278419,2802.1,2801.3,0.89067612]
[1769380302993,0.00278419,2802.1,2801.5,0.89067612]
[1769380303986,0.28440938,2802.6,2802.0,4.41333971]
[1769380304189,4.22427115,2803.1,2801.8,0.89067612]
[1769380304190,2.11708939,2803.2,2802.5,0.89067612]
[1769380304385,3.51241342,2803.1,2802.5,0.89067612]
[1769380304582,2.11708939,2803.3,2802.5,0.89067612]
[1769380304791,1.30506225,2803.5,2802.8,0.89067612]
[1769380304982,3.5027907,2803.4,2802.8,0.89067612]
[1769380305187,0.18285313,2803.5,2802.8,0.89067612]
[1769380305686,0.18285313,2803.5,2802.1,3.52266359]
[1769380306094,0.00430313,2803.5,2802.1,3.52266359]
[1769380322206,0.18285313,2803.5,2802.1,3.52266359]
[1769380323704,0.17853,2803.9,2802.1,3.52266359]
[1769380323906,0.17853,2803.8,2802.1,3.52266359]
[1769380324803,0.00367698,2803.8,2802.1,3.52266359]
[1769380325002,3.6052205,2803.8,2802.1,3.52266359]
[1769380325704,0.17855,2803.5,2802.1,3.52266359]
[1769380326208,0.17857,2803.2,2802.1,3.52266359]
[1769380326603,0.1786,2802.8,2801.7,3.61742549]
[1769380327303,0.1786,2802.8,2800.9,0.00462024]
[1769380327304,3.60154352,2802.5,2800.9,0.00462024]
[1769380327500,0.17863,2802.2,2800.9,0.00462024]
[1769380327900,3.60154352,2801.8,2799.8,3.61742549]
[1769380328708,3.60154352,2801.6,2799.8,3.61742549]
[1769380328903,3.60535966,2801.6,2799.8,3.62167031]
[1769380329404,0.17869,2801.3,2799.8,3.62167031]
[1769380331704,0.00381614,2801.6,2799.8,3.62167031]
[1769380338104,0.18248614,2801.6,2799.8,3.62167031]
[1769380338811,0.17868,2801.5,2799.8,3.62167031]
[1769380339009,0.00381614,2801.6,2799.8,3.62167031]
[1769380339010,0.1787,2801.2,2799.8,3.62167031]
[1769380339606,3.73749015,2801.4,2799.8,3.62167031]
[1769380340616,0.1787,2801.1,2799.8,3.62167031]
[1769380341211,0.00381614,2801.6,2799.8,0.00424482]
[1769380341212,3.91620015,2801.0,2799.8,0.00424482]
[1769380341417,0.17872,2800.9,2799.8,0.00424482]
[1769380343517,0.17872,2800.9,2799.8,3.64038258]
[1769380344430,0.18248614,2801.6,2799.8,3.64038258]
[1769380345927,0.17868,2801.4,2799.8,3.64038258]
[1769380346224,0.17872,2800.9,2799.8,3.64038258]
[1769380348319,0.17868,2801.5,2799.8,3.64038258]
[1769380348514,0.00381614,2801.6,2799.8,3.64038258]
[1769380348515,0.17869,2801.3,2799.8,3.64038258]
[1769380356436,0.17869,2801.3,2799.0,11.23029971]
[1769380356437,3.8368744,2801.1,2799.0,11.23029971]
[1769380356626,0.00381614,2801.6,2799.0,3.57]
[1769380356627,0.17874,2800.5,2799.0,3.57]
[1769380357327,3.8368744,2800.9,2799.0,3.57277367]
[1769380357630,0.1787,2801.1,2799.0,3.57277367]
[1769380357830,3.67206935,2801.0,2799.0,3.57277367]
[1769380358033,7.50895375,2800.9,2799.0,3.57277367]
[1769380358326,4.0155944,2800.9,2799.1,3.66926411]
[1769380358527,5.59401384,2800.8,2799.1,3.66926411]
[1769380358733,9.43088824,2800.7,2799.1,3.66926411]
[1769380358931,3.49221689,2800.6,2799.1,3.66926411]
[1769380359130,3.49221689,2800.6,2799.0,3.57277367]
[1769380359131,5.93867135,2800.5,2797.8,7.66029971]
[1769380359326,0.17882,2799.3,2797.4,3.66926411]
[1769380359635,3.8368744,2799.1,2797.4,3.66926411]
[1769380360234,3.83969326,2799.1,2797.4,3.67269228]
[1769380360736,4.0157144,2799.0,2797.4,3.67269228]
[1769380363432,0.17884,2799.0,2797.4,3.67269228]
[1769380364634,4.0157144,2799.0,2797.4,3.67269228]
[1769380364836,4.0157144,2799.0,2797.4,7.49669228]
[1769380365834,4.0157144,2798.9,2797.5,3.824]
[1769380366832,4.0157144,2798.9,2797.6,3.66926411]
[1769380366833,0.17884,2798.9,2797.6,3.66926411]
[1769380368340,3.83969326,2799.1,2797.6,3.66926411]
[1769380369737,4.01852326,2799.1,2797.6,3.66926411]
[1769380370640,4.01852326,2799.1,2797.6,7.49326411]
[1769380372336,3.83969326,2799.1,2797.6,3.25387411]
[1769380372541,3.83969326,2799.1,2797.4,0.00342817]
[1769380372542,0.17887,2798.5,2797.4,0.00342817]
[1769380372740,3.8368744,2798.5,2795.8,9.38536997]
[1769380372946,0.17894,2797.5,2795.1,1.33912741]
[1769380373144,0.17894,2797.5,2794.9,0.3100094]
[1769380373145,0.17894,2797.5,2795.6,1.33912741]
[1769380373837,0.17894,2797.5,2795.6,1.34307955]
[1769380374243,0.17894,2797.5,2795.7,3.66926411]
[1769380378343,0.17889,2798.2,2796.2,3.66926411]
[1769380381541,0.17889,2798.2,2796.7,3.66926411]
[1769380387064,0.29889616,2798.6,2794.1,10.62524473]
[1769380387065,0.179,2796.5,2794.1,10.62524473]
[1769380387363,0.18337186,2796.5,2795.1,3.72047415]
[1769380387865,0.00437186,2796.5,2795.6,3.72442629]
[1769380388354,0.179,2796.4,2795.6,0.00395214]
[1769380388761,0.17901,2796.3,2795.6,0.00395214]
[1769380389670,0.17902,2796.2,2794.2,1.33912741]
[1769380389872,0.17902,2796.1,2794.2,1.33912741]
[1769380390271,0.17908,2795.3,2794.1,1.62581761]
[1769380390762,0.17908,2795.3,2794.1,1.62859712]
[1769380392366,2.098,2796.0,2794.1,1.62859712]
[1769380392367,0.17908,2795.2,2794.1,1.62859712]
[1769380392761,0.17908,2795.2,2793.2,0.01004349]
[1769380392762,3.55438517,2795.2,2793.3,3.72047415]
[1769380392965,5.676,2795.1,2793.3,3.72047415]
[1769380393168,7.60178805,2795.1,2793.3,3.72047415]
[1769380393471,1.92578805,2795.0,2793.3,3.72047415]
[1769380393763,0.17912,2794.6,2793.3,3.72484815]
[1769380394471,0.17907,2795.3,2793.3,3.72484815]
[1769380395168,0.48772261,2795.3,2793.3,3.72484815]
[1769380395469,0.17907,2795.3,2793.3,3.72484815]
[1769380395671,0.17909,2795.1,2793.3,3.72484815]
[1769380399365,2.27809,2795.1,2793.3,3.72484815]
[1769380400370,0.17909,2795.1,2793.3,3.72484815]
[1769380401671,0.1791,2794.9,2793.3,3.72484815]
[1769380402080,0.17912,2794.6,2793.3,3.72484815]
[1769380407170,3.30022844,2795.3,2793.3,3.72484815]
[1769380407376,0.17912,2794.5,2793.3,3.72484815]
[1769380407576,0.18283499,2794.5,2793.3,3.72484815]
[1769380408682,0.17913,2794.4,2793.3,3.72484815]
[1769380410481,0.00371499,2794.5,2793.3,3.72484815]
[1769380411079,0.1791,2794.9,2793.3,3.72484815]
[1769380412182,0.1817653,2794.9,2793.3,3.72484815]
[1769380412782,0.17911,2794.8,2793.3,3.72484815]
[1769380413979,0.17911,2794.7,2793.3,3.72484815]
[1769380414577,0.17912,2794.6,2793.3,3.72484815]
[1769380417589,0.17912,2794.5,2793.3,3.72484815]
[1769380418387,0.17914,2794.3,2793.3,3.72484815]
[1769380419094,0.17914,2794.2,2793.3,3.72484815]
[1769380419396,0.17915,2794.1,2793.3,3.72484815]